fUSD/lending_fUSD_20250526
["ID","MTS","AMOUNT","RATE_DAILY","PERIOD"]
[362413391,1748261443025,-2457.35796407,0.0002739,2]
[362413392,1748261443041,-414.68001201,0.0002739,2]
[362413393,1748261443053,-369.04840763,0.0002739,2]
[362413463,1748261687890,159.91,0.00013699,2]
[362413465,1748261908864,5464.8706,0.00018,2]
[362413466,1748261908886,414.3894,0.00018,2]
[362413467,1748262265262,2508.54068627,0.00026,120]
[362413468,1748262425289,170.49,0.0001622,2]
[362413473,1748262461926,250.0,0.00015,2]
[362413475,1748262463003,300.0,0.00017,2]
[362413477,1748262567211,1089.84,0.00017643,2]
[362413496,1748262631968,-1084.12496263,0.00018779,2]
[362413497,1748262631979,-115.87503737,0.00018779,2]
[362413498,1748262631988,-21682.75144069,0.0001878,2]
[362413499,1748262631998,-350.0,0.00019,2]
[362413500,1748262632007,-159.69,0.00019178,2]
[362413501,1748262632016,-273.15,0.00019565,2]
[362413502,1748262632025,-258.8104506,0.000199,2]
[362413503,1748262632035,-1089.84,0.00019907,2]
[362413504,1748262632045,-311.23,0.00020003,2]
[362413505,1748262632055,-4970.07546909,0.0002001,2]
[362413506,1748262632065,-12500.0,0.00020037,2]
[362413507,1748262632074,-263.62388882,0.00020045,2]
[362413508,1748262632084,-12500.0,0.00020046,2]
[362413509,1748262632093,-12500.0,0.00020054,2]
[362413510,1748262632102,-499.0,0.00020073,2]
[362413511,1748262632111,-165.5822956,0.00020073,2]
[362413512,1748262632120,-500.0,0.00020073,2]
[362413513,1748262632129,-343.99844668,0.00020073,2]
[362413514,1748262632138,-1677.25137006,0.0002015,2]
[362413515,1748262632147,-159.91,0.00020187,2]
[362413516,1748262632156,-230.81331504,0.0002023,10]
[362413517,1748262632166,-4000.0,0.0002029,2]
[362413519,1748262632175,-750.0,0.00020387,2]
[362413520,1748262632184,-279.87,0.00020401,2]
[362413521,1748262632193,-250.0,0.00020511,2]
[362413522,1748262632202,-200.0,0.00020511,2]
[362413523,1748262632212,-1077.97,0.00020524,2]
[362413524,1748262632222,-1680.0,0.00020573,2]
[362413525,1748262632232,-14055.9214231,0.00020693,2]
[362413526,1748262632242,-1000.0,0.00020693,2]
[362413527,1748262632252,-2500.0,0.00020693,2]
[362413528,1748262632262,-501.04214041,0.00020773,2]
[362413529,1748262632271,-303.88403609,0.00020773,2]
[362413530,1748262632281,-22332.1728,0.00020793,2]
[362413531,1748262632291,-200737.52800019,0.00020793,2]
[362413534,1748262632322,-1500.0,0.00020793,2]
[362413555,1748262637864,-575.79183066,0.00020693,2]
[362413556,1748262638082,-1924.20816934,0.00020693,2]
[362413557,1748262638092,-4787.36489981,0.00020793,2]
[362413558,1748262638102,-1000.0,0.00020793,2]
[362413559,1748262638112,-1500.0,0.00020928,2]
[362413560,1748262638121,-282.44,0.00020986,2]
[362413561,1748262638131,-400.0,0.00021,2]
[362413562,1748262638141,-1157.24557895,0.00021,2]
[362413563,1748262638151,-190.99764169,0.00021,2]
[362413564,1748262638160,-258.81045034,0.00021003,4]
[362413565,1748262638171,-1000.0,0.00021024,2]
[362413566,1748262638182,-272.31,0.00021116,2]
[362413567,1748262638192,-167.57,0.00021481,2]
[362413569,1748262638202,-1802.1,0.000215,2]
[362413571,1748262638212,-282.44,0.00021773,2]
[362413573,1748262638221,-515.03566635,0.00021918,2]
[362413575,1748262638231,-500.0,0.00021918,2]
[362413577,1748262638240,-278.78242308,0.00021918,2]
[362413579,1748262638250,-248.3070376,0.00022,2]
[362413580,1748262638260,-500.0,0.00022,2]
[362413581,1748262638269,-258.81045034,0.00022107,6]
[362413582,1748262638279,-232.70221099,0.0002211,2]
[362413583,1748262638289,-1089.84,0.00022171,2]
[362413584,1748262638299,-2331.61601733,0.00022221,2]
[362413585,1748262638308,-250.0,0.00022252,2]
[362413586,1748262638318,-200.0,0.00022252,2]
[362413587,1748262638327,-23900.0,0.00022277,2]
[362413588,1748262638337,-250.0,0.00022515,2]
[362413589,1748262638347,-200.0,0.00022515,2]
[362413590,1748262638358,-2351.0,0.00022539,2]
[362413591,1748262638369,-282.44,0.0002256,2]
[362413592,1748262638378,-500.0,0.00022573,2]
[362413593,1748262638388,-500.0,0.00022573,2]
[362413594,1748262638400,-47610.92657533,0.00022584,2]
[362413595,1748262640233,-32736.0,0.00022584,2]
[362413596,1748262640292,-19856.74902235,0.00022584,2]
[362413597,1748262640303,-10513.98949427,0.00022584,2]
[362413598,1748262640313,-506.6393195,0.0002271,2]
[362413599,1748262640323,-161.64676617,0.000228,2]
[362413600,1748262640332,-14055.92142301,0.00022992,2]
[362413601,1748262640343,-457.15,0.00023,2]
[362413602,1748262640353,-450.0,0.00023,2]
[362413603,1748262640362,-1506.98980502,0.00023,2]
[362413604,1748262640372,-995.07016465,0.00023121,2]
[362413605,1748262640381,-250.0,0.00023141,2]
[362413606,1748262640391,-837.76,0.00023153,2]
[362413607,1748262640400,-150.0,0.00023153,2]
[362413608,1748262640410,-258.81045034,0.0002321,8]
[362413609,1748262640419,-282.44,0.00023347,2]
[362413610,1748262640428,-200.0,0.000235,2]
[362413611,1748262640438,-167.43,0.00023597,2]
[362413612,1748262640447,-1000.0,0.00023652,2]
[362413613,1748262640457,-500.0,0.00023808,2]
[362413614,1748262640466,-787.08,0.00023836,2]
[362413615,1748262640475,-201339.61227333,0.00024,3]
[362413616,1748262640484,-988.21618296,0.00024,2]
[362413617,1748262640494,-5000.00436774,0.00024,5]
[362413618,1748262640503,-282.44,0.00024134,2]
[362413619,1748262640514,-648.31,0.00024155,2]
[362413620,1748262640523,-500.0,0.00024155,2]
[362413621,1748262640532,-150.40224288,0.00024155,2]
[362413622,1748262640541,-150.0,0.00024155,2]
[362413623,1748262640551,-151.49098696,0.00024155,2]
[362413624,1748262640560,-500.0,0.00024155,2]
[362413625,1748262640570,-500.0,0.00024155,2]
[362413626,1748262640579,-150.0,0.00024155,2]
[362413627,1748262640589,-500.0,0.00024182,2]
[362413628,1748262640598,-500.0,0.00024182,2]
[362413629,1748262640608,-500.0,0.00024182,2]
[362413630,1748262640617,-500.0,0.0002421,2]
[362413631,1748262640627,-539.1472452,0.0002421,2]
[362413632,1748262640639,-229.56115721,0.0002421,2]
[362413633,1748262640648,-408.4215648,0.0002421,2]
[362413634,1748262640658,-3579.6560837,0.0002421,2]
[362413635,1748262640667,-500.0,0.00024237,2]
[362413636,1748262640677,-642.09294678,0.00024265,2]
[362413637,1748262640687,-258.81045034,0.00024314,10]
[362413638,1748262640696,-2571.39,0.0002432,2]
[362413639,1748262640706,-2331.61601728,0.00024351,2]
[362413640,1748262640716,-1089.84,0.00024435,2]
[362413641,1748262640726,-1000.0,0.00024658,2]
[362413642,1748262640735,-1000.0,0.00024658,2]
[362413643,1748262640745,-3292.0,0.00024693,2]
[362413644,1748262640755,-743.90109878,0.000247,2]
[362413645,1748262640764,-228.60983254,0.00024799,2]
[362413646,1748262640774,-189.26486461,0.00024799,2]
[362413647,1748262640784,-313.74409471,0.00024799,2]
[362413648,1748262640794,-500.0,0.00024799,2]
[362413649,1748262640804,-500.0,0.00024799,2]
[362413650,1748262640813,-500.0,0.00024799,2]
[362413651,1748262640823,-179.50895389,0.00024799,2]
[362413652,1748262640832,-500.0,0.00024799,2]
[362413653,1748262640842,-500.0,0.00024799,2]
[362413654,1748262640852,-500.0,0.00024799,2]
[362413655,1748262640861,-500.0,0.00024799,2]
[362413656,1748262640871,-500.0,0.00024799,2]
[362413657,1748262640880,-500.0,0.00024799,2]
[362413658,1748262640889,-288.80228781,0.00024799,2]
[362413659,1748262640899,-565.31354732,0.00024799,2]
[362413660,1748262640908,-500.0,0.00024799,2]
[362413661,1748262640918,-500.0,0.00024799,2]
[362413662,1748262640927,-500.0,0.00024799,2]
[362413663,1748262640936,-600.0,0.00024799,2]
[362413664,1748262640946,-151.0,0.000248,7]
[362413665,1748262640955,-151.0,0.000248,7]
[362413666,1748262640964,-151.0,0.000248,7]
[362413667,1748262640973,-151.0,0.000248,7]
[362413668,1748262640982,-4069.690071,0.000248,7]
[362413669,1748262640993,-307213.227539,0.000248,3]
[362413670,1748262641003,-151.0,0.000248,7]
[362413671,1748262641013,-151.0,0.000248,7]
[362413672,1748262641022,-154.514077,0.000248,7]
[362413673,1748262641031,-151.0,0.000248,7]
[362413674,1748262641041,-151.0,0.000248,7]
[362413675,1748262641050,-151.0,0.000248,7]
[362413676,1748262641059,-151.0,0.000248,7]
[362413677,1748262641069,-151.0,0.000248,7]
[362413678,1748262641078,-152.199333,0.000248,7]
[362413679,1748262641087,-250.0,0.00024813,2]
[362413680,1748262641097,-320.82141485,0.0002488,7]
[362413681,1748262641107,-28445.6692165,0.0002489,3]
[362413682,1748262641117,-800.0,0.000249,9]
[362413683,1748262641127,-72520.62155937,0.000249,3]
[362413765,1748262701703,156.22,0.00025421,120]
[362413767,1748262756261,151.49,0.00013699,2]
[362413773,1748263277870,1500.0,0.00025183,120]
[362413813,1748263718000,150.08,0.00018,2]
[362413818,1748263764471,-151.49,0.00020548,2]
[362413819,1748263764501,-1000.0,0.00020693,2]
[362413820,1748263827888,151.49,0.00013699,2]
[362413821,1748263828094,151.49,0.00021404,2]
[362413822,1748263832049,-411.43,0.00023,2]
[362413823,1748263832059,-871.87,0.0002309,2]
[362413824,1748263832069,-824.51213118,0.00024112,2]
[362413825,1748263832079,-824.51213118,0.00024467,2]
[362413826,1748263832288,-238.0,0.00024548,2]
[362413827,1748263832299,-766.0,0.00024582,2]
[362413828,1748263832309,-453.0,0.00024606,2]
[362413829,1748263832319,-151.0,0.000248,7]
[362413830,1748263832329,-1200.0,0.00024812,2]
[362413832,1748263832339,-300.0,0.00024812,2]
[362413833,1748263832348,-478.99023403,0.00024813,2]
[362413834,1748263832369,-47.17416796,0.00024813,2]
[362413835,1748263832380,-437.82583204,0.00024813,2]
[362413836,1748263832395,-641.680795,0.00024813,2]
[362413837,1748263832407,-2436.27928737,0.00024813,2]
[362413838,1748263832423,-484.21408559,0.00024813,2]
[362413839,1748263832432,-14.19331874,0.00024899,2]
[362413840,1748263832444,-226.60668126,0.00024899,2]
[362413841,1748263832454,-152.681052,0.000249,7]
[362413842,1748263832463,-610.78678641,0.000249,2]
[362413843,1748263832475,-1112.22,0.000249,2]
[362413844,1748263832495,-574.01311803,0.000249,2]
[362413845,1748263832506,-438.25924277,0.000249,2]
[362413846,1748263832540,-704.1835659,0.000249,2]
[362413847,1748263832552,-310.31,0.000249,2]
[362413848,1748263832567,-1876.10601564,0.000249,2]
[362413849,1748263832579,-3391.16405461,0.000249,2]
[362413850,1748263832590,-460.75959115,0.000249,2]
[362413929,1748263838121,-522.18762549,0.000249,2]
[362413931,1748263838132,-1086.08,0.000249,2]
[362413933,1748263838142,-106.84531451,0.000249,2]
[362413936,1748263838232,-1756.27846413,0.000249,2]
[362413937,1748263838244,-8136.86622136,0.000249,2]
[362413938,1748263838254,-150.99,0.000249,2]
[362413939,1748263838264,-7589.71,0.000249,2]
[362413940,1748263838276,-3136.52,0.000249,2]
[362413941,1748263838286,-999.99,0.000249,2]
[362413942,1748263838296,-2076.92401959,0.000249,2]
[362413943,1748263838308,-258.51758077,0.000249,2]
[362413944,1748263838327,-461.94979684,0.000249,2]
[362413945,1748263838339,-5799.06923783,0.000249,2]
[362413946,1748263838351,-1403.52936497,0.000249,2]
[362413947,1748263838361,-1000.0,0.000249,2]
[362413948,1748263838371,-215.67537538,0.000249,12]
[362413949,1748263838382,-283.76,0.00024933,2]
[362413950,1748263838392,-242.53873725,0.00025,3]
[362413951,1748263838401,-500.0,0.00025,2]
[362413952,1748263838411,-1334.78,0.0002502,2]
[362413953,1748263838421,-1000.0,0.00025116,2]
[362413954,1748263838430,-206.0,0.00025211,2]
[362413955,1748263838440,-150.0,0.00025226,2]
[362413956,1748263838449,-1000.0,0.00025306,2]
[362413957,1748263838458,-324.15,0.00025349,2]
[362413958,1748263838468,-871.87,0.00025354,2]
[362413959,1748263838478,-250.0,0.0002536,2]
[362413960,1748263838487,-2751.0,0.0002537,2]
[362413961,1748263838499,-4365.13,0.0002537,2]
[362413962,1748263838508,-2367.58,0.00025374,10]
[362413963,1748263838517,-626.43293799,0.00025383,2]
[362413964,1748263838537,-2938.90603946,0.00025383,2]
[362414045,1748263840216,-20334.66102255,0.00025383,2]
[362414047,1748263840227,-617.37375056,0.00025443,2]
[362414049,1748263840237,-2310.11,0.00025465,2]
[362414051,1748263840246,-3697.44,0.00025495,2]
[362414071,1748263840256,-185.875,0.00025564,10]
[362414074,1748263840456,-200.0,0.00025816,2]
[362414075,1748263840465,-215.67537528,0.00025831,13]
[362414077,1748263840474,-2000.0,0.00026,2]
[362414079,1748263840483,-240.8,0.00026269,2]
[362414081,1748263840493,-1153.34482618,0.0002628,2]
[362414083,1748263840502,-199.5,0.00026328,2]
[362414085,1748263840511,-176.47,0.00026459,120]
[362414087,1748263840520,-215.67537528,0.00026762,15]
[362414089,1748263840530,-17074.39403961,0.00026813,2]
[362414091,1748263840539,-771.179281,0.00026842,6]
[362414093,1748263840548,-420.0,0.00026885,2]
[362414095,1748263840558,-223.28,0.00027,2]
[362414097,1748263840567,-550.0,0.00027,2]
[362414099,1748263840576,-694.0,0.00027007,2]
[362414101,1748263840585,-2684.3011066,0.00027207,2]
[362414103,1748263840595,-1424.92022294,0.00027281,2]
[362414105,1748263840606,-440.37259092,0.00027281,2]
[362414107,1748263840615,-402.49154601,0.00027281,2]
[362414108,1748263840634,-597.50845399,0.00027281,2]
[362414109,1748263840643,-19879.96987103,0.00027371,3]
[362414110,1748263840655,-9054.74075626,0.00027371,3]
[362414112,1748263840676,-284.62911001,0.00027371,3]
[362414114,1748263840686,-2814.42,0.00027371,2]
[362414116,1748263840694,-125.10984699,0.00027373,2]
[362414118,1748263840707,-874.89015301,0.00027373,2]
[362414120,1748263840717,-2000.0,0.0002738,2]
[362414122,1748263840727,-4529.46079521,0.00027381,2]
[362414125,1748263840739,-1018.17458301,0.00027381,2]
[362414128,1748263840750,-2306.02363849,0.00027381,2]
[362414135,1748263840773,-9068.59209769,0.00027381,2]
[362414138,1748263840782,-7975.9458758,0.00027381,2]
[362414139,1748263840791,-2891.01049481,0.00027381,2]
[362414144,1748263840829,-3000.0,0.00027381,2]
[362414146,1748263840844,-401.7655333,0.00027381,2]
[362414149,1748263840855,-2386.36463944,0.00027381,2]
[362414151,1748263840867,-2432.26839026,0.00027381,2]
[362414153,1748263840878,-5522.92014843,0.00027381,2]
[362414155,1748263840889,-678.42001266,0.00027381,2]
[362414157,1748263840900,-888.15000024,0.00027381,2]
[362414363,1748263843142,-206.0,0.00025211,2]
[362414365,1748263843152,-526.16440201,0.00025495,2]
[362414367,1748263843162,-288.53559799,0.00027381,2]
[362414376,1748263843304,-712.68,0.00027381,2]
[362414384,1748263846145,-1446.95910035,0.00027381,2]
[362414385,1748263846337,-1097.3,0.00027381,2]
[362414386,1748263846394,-1097.0,0.00027381,2]
[362414387,1748263846406,-1283.05,0.00027381,2]
[362414388,1748263846418,-40113.22556862,0.00027381,2]
[362414389,1748263846450,-770.95840931,0.00027381,2]
[362414390,1748263846509,-770.66223467,0.00027381,2]
[362414391,1748263846566,-68210.59396771,0.00027381,2]
[362414396,1748264281698,250.0,0.00015,2]
[362414397,1748264282768,300.0,0.00017,2]
[362414399,1748264479360,851.2486177,0.00025999,120]
[362414404,1748264818096,-350.0,0.00019,2]
[362414405,1748264818119,-400.0,0.00021,2]
[362414406,1748264818141,-235.99450325,0.00021023,2]
[362414408,1748264910985,151.49,0.00013699,2]
[362414422,1748264971070,-151.0,0.00019178,2]
[362414423,1748264971091,-156.587,0.00019726,2]
[362414424,1748264971114,-162.380719,0.00020274,2]
[362414425,1748264971135,-168.3888056,0.00020822,2]
[362414426,1748264971157,-71.95379347,0.00021023,2]
[362414427,1748264971179,-174.61919141,0.0002137,2]
[362414428,1748264971200,-174.61919142,0.00021918,2]
[362414429,1748264992699,732.6493291,0.000186,2]
[362414448,1748265032347,-2494.07798957,0.000186,2]
[362414457,1748265032484,-799.09037065,0.000186,2]
[362414459,1748265032596,-1117.1601092,0.000186,2]
[362414460,1748265032655,-523.50990322,0.000186,2]
[362414890,1748265038201,-610.94879914,0.000186,2]
[362414891,1748265038291,-1031.7009182,0.000186,2]
[362414892,1748265038480,-1023.1999999,0.000186,2]
[362414894,1748265040344,-395.472,0.000186,2]
[362414895,1748265040355,-21729.8255604,0.000186,2]
[362414896,1748265040367,-7537.31763287,0.000186,2]
[362414897,1748265040384,-206.0,0.00022211,2]
[362414898,1748265040394,-151.49,0.00022505,2]
[362414899,1748265040405,-370.29,0.00023,2]
[362414900,1748265040415,-450.0,0.00023,2]
[362414901,1748265040426,-900.0,0.000235,2]
[362414902,1748265040436,-833.67,0.00023519,2]
[362414903,1748265040449,-250.0,0.00024106,2]
[362414904,1748265040459,-920.0,0.000245,3]
[362414905,1748265040469,-500.0,0.00025,2]
[362414906,1748265040479,-250.0,0.000253,2]
[362414907,1748265040489,-655.9,0.00025643,2]
[362414908,1748265040500,-286.46,0.00025671,2]
[362414909,1748265040518,-833.67,0.00025783,2]
[362414910,1748265040528,-207.4,0.00025984,2]
[362414911,1748265040537,-206.0,0.0002599,7]
[362414912,1748265040546,-1200.0,0.00025998,2]
[362414913,1748265040555,-300.0,0.00025999,2]
[362414914,1748265040564,-2000.0,0.00026,2]
[362414915,1748265040573,-6683.86,0.00026,2]
[362414916,1748265040582,-150.99,0.00026,2]
[362414917,1748265040592,-150.99,0.00026,2]
[362414918,1748265040601,-4527.12190466,0.00026,2]
[362414919,1748265040665,-652.01062997,0.00026,2]
[362414920,1748265040690,-50.23746537,0.00026,2]
[362414921,1748265040703,-294.90804313,0.00026,2]
[362414922,1748265040714,-16.08195687,0.00026,2]
[362414923,1748265040724,-500.0,0.00026,2]
[362414924,1748265040734,-373.51804289,0.00026007,2]
[362414925,1748265040764,-626.48195711,0.00026007,2]
[362414926,1748265040773,-380.62663378,0.00026296,2]
[362414927,1748265040783,-2751.0,0.00026344,2]
[362414928,1748265040792,-580.69,0.0002665,2]
[362414929,1748265040803,-500.0,0.00026697,2]
[362414930,1748265040812,-164.52,0.00026784,2]
[362414931,1748265040822,-800.0,0.000268,9]
[362414932,1748265040832,-199.5,0.00026807,2]
[362414933,1748265040842,-730.308639,0.00026842,6]
[362414934,1748265040851,-607.20268774,0.000269,9]
[362414935,1748265040862,-992.79731226,0.000269,9]
[362414936,1748265040871,-2988.93535884,0.000269,2]
[362414937,1748265040894,-6365.83690239,0.000269,2]
[362414938,1748265040905,-4113.17121111,0.000269,2]
[362414948,1748265041128,-2029.21352965,0.000269,2]
[362414949,1748265041140,-2500.0,0.000269,2]
[362414950,1748265041150,-200.80121168,0.000269,16]
[362414951,1748265041159,-536.5211321,0.00026938,2]
[362414952,1748265041169,-450.0,0.0002697,2]
[362414953,1748265041179,-507.55889128,0.00026973,2]
[362414954,1748265041188,-151.0,0.00026984,2]
[362414955,1748265041200,-151.0,0.00026984,2]
[362414956,1748265041210,-1199.20597015,0.00026984,2]
[362414957,1748265041219,-300.0,0.00026984,2]
[362414958,1748265041229,-300.0,0.00026984,2]
[362414959,1748265041239,-300.0,0.00026984,2]
[362414960,1748265041248,-346.07992404,0.00026984,2]
[362414961,1748265041259,-305.0000025,0.00026984,2]
[362414962,1748265041271,-17.57193103,0.00026984,2]
[362414963,1748265041281,-300.0,0.00026984,2]
[362414964,1748265041290,-318.47058037,0.00026984,2]
[362414965,1748265041302,-92.41350893,0.00026984,2]
[362414966,1748265041312,-371.62045107,0.00026984,2]
[362414967,1748265041339,-446.47999996,0.00026984,2]
[362414968,1748265041374,-1962.02666871,0.00026984,2]
[362414969,1748265041387,-719.87288026,0.00026984,2]
[362414970,1748265041396,-3500.0,0.00026984,2]
[362414971,1748265041407,-3500.0,0.00026984,2]
[362414972,1748265041416,-3500.0,0.00026984,2]
[362414973,1748265041426,-3500.0,0.00026984,2]
[362414974,1748265041435,-151.0,0.00026984,2]
[362414975,1748265041445,-3500.0,0.00026984,2]
[362414976,1748265041456,-3500.0,0.00026984,2]
[362414977,1748265041465,-3500.0,0.00026984,2]
[362414978,1748265041475,-3500.0,0.00026984,2]
[362414979,1748265041484,-3500.0,0.00026984,2]
[362414980,1748265041493,-668.65185757,0.00026984,2]
[362414981,1748265041503,-300.0,0.00026984,2]
[362414982,1748265041512,-300.0,0.00026984,2]
[362414983,1748265041522,-300.0,0.00026984,2]
[362414984,1748265041531,-300.0,0.00026984,2]
[362414985,1748265041541,-300.0,0.00026984,2]
[362414986,1748265041551,-300.0,0.00026984,2]
[362414987,1748265041560,-300.0,0.00026984,2]
[362414988,1748265041570,-300.0,0.00026984,2]
[362414989,1748265041579,-400.0,0.00026984,2]
[362414990,1748265041589,-1407.21,0.0002699,2]
[362414991,1748265041599,-29074.6259084,0.0002699,3]
[362414992,1748265041608,-137.57088296,0.0002699,2]
[362415005,1748265043457,-753.44323725,0.0002699,2]
[362415006,1748265043649,-516.19587979,0.0002699,2]
[362415007,1748265043659,-239.00412021,0.00026999,3]
[362415008,1748265043671,-489.12061828,0.00026999,3]
[362415009,1748265043680,-2173.04192992,0.00026999,3]
[362415010,1748265043699,-261091.32333705,0.00026999,3]
[362415011,1748265043709,-550.0,0.00027,2]
[362415012,1748265043719,-250000.0,0.00027,2]
[362415013,1748265043729,-188.55385505,0.00027171,2]
[362415014,1748265043738,-500.0,0.00027181,2]
[362415015,1748265043749,-151.0,0.0002726,7]
[362415016,1748265043762,-151.0,0.0002726,7]
[362415017,1748265043772,-116298.503633,0.0002726,3]
[362415018,1748265043782,-29074.6259084,0.00027261,3]
[362415019,1748265043791,-29074.6259084,0.00027271,3]
[362415020,1748265043801,-1000.0,0.00027273,2]
[362415021,1748265043811,-2066.319,0.0002728,16]
[362415022,1748265043821,-185.875,0.0002728,16]
[362415023,1748265043830,-160.02688277,0.0002728,2]
[362415024,1748265043842,-219.6208663,0.0002728,2]
[362415025,1748265043853,-500.0,0.0002728,2]
[362415026,1748265043863,-500.0,0.0002728,2]
[362415027,1748265043872,-500.0,0.0002728,2]
[362415028,1748265043882,-500.0,0.0002728,2]
[362415029,1748265043891,-500.0,0.0002728,2]
[362415030,1748265043900,-365.71948313,0.0002728,2]
[362415031,1748265043910,-500.0,0.0002728,2]
[362415032,1748265043920,-252.16160147,0.0002728,2]
[362415033,1748265043929,-500.0,0.0002728,2]
[362415034,1748265043939,-500.0,0.0002728,2]
[362415035,1748265043949,-500.0,0.0002728,2]
[362415036,1748265043958,-500.0,0.0002728,2]
[362415037,1748265043969,-151.805729,0.00027281,7]
[362415039,1748265043979,-152.46574,0.00027281,7]
[362415040,1748265043989,-151.794378,0.00027281,7]
[362415042,1748265043999,-151.0,0.00027281,7]
[362415044,1748265044008,-151.0,0.00027281,7]
[362415045,1748265044022,-151.0,0.00027281,7]
[362415046,1748265044032,-151.0,0.00027281,7]
[362415047,1748265044043,-151.0,0.00027281,7]
[362415048,1748265044053,-151.0,0.00027281,7]
[362415049,1748265044063,-151.0,0.00027281,7]
[362415050,1748265044073,-151.0,0.00027281,7]
[362415051,1748265044082,-151.0,0.00027281,7]
[362415052,1748265044093,-151.0,0.00027281,7]
[362415053,1748265044104,-151.0,0.00027281,7]
[362415054,1748265044115,-1000.0,0.00027281,2]
[362415055,1748265044125,-69949.112,0.00027281,2]
[362415056,1748265044136,-210.34,0.000273,2]
[362415057,1748265044147,-29074.6259084,0.00027345,3]
[362415058,1748265044157,-215.0738,0.00027353,2]
[362415059,1748265044168,-1561.085848,0.00027355,7]
[362415060,1748265044178,-1561.085848,0.00027355,7]
[362415061,1748265044188,-151.0,0.00027355,7]
[362415062,1748265044198,-151.0,0.00027355,7]
[362415063,1748265044208,-29074.6259084,0.00027361,3]
[362415064,1748265044218,-807.28894155,0.00027369,2]
[362415065,1748265044228,-250.0,0.0002737,2]
[362415066,1748265044237,-3754.0,0.00027371,2]
[362415067,1748265044247,-1561.085848,0.00027371,7]
[362415068,1748265044257,-1561.085848,0.00027371,7]
[362415069,1748265044267,-151.0,0.00027371,7]
[362415070,1748265044276,-162.772136,0.00027371,7]
[362415071,1748265044286,-151.0,0.00027371,7]
[362415072,1748265044296,-151.0,0.00027371,7]
[362415073,1748265044306,-242.252924,0.00027371,7]
[362415074,1748265044316,-87223.877725,0.00027371,3]
[362415075,1748265044325,-64795.3368138,0.00027379,2]
[362415076,1748265044335,-20106.0862613,0.00027379,2]
[362415077,1748265044344,-116935.1365673,0.00027379,2]
[362415078,1748265044353,-844.47868899,0.00027379,2]
[362415079,1748265044363,-774.3147952,0.00027379,2]
[362415080,1748265044372,-154.066768,0.00027381,7]
[362415081,1748265044382,-151.0,0.00027381,7]
[362415082,1748265044391,-151.0,0.00027381,7]
[362415083,1748265044401,-178.1922892,0.00027381,2]
[362415084,1748265044411,-4000.0,0.00027381,2]
[362415085,1748265044420,-1561.085848,0.00027381,7]
[362415086,1748265044430,-1561.085848,0.00027381,7]
[362415087,1748265044440,-5316.9982189,0.00027381,2]
[362415088,1748265044450,-293.049502,0.00027381,7]
[362415089,1748265044461,-151.0,0.00027381,7]
[362415090,1748265044471,-933.61605263,0.0002739,2]
[362415091,1748265044481,-4800.0,0.00027397,120]
[362415092,1748265044490,-300.0,0.00027397,2]
[362415093,1748265044500,-150.0,0.00027397,2]
[362415094,1748265044509,-500.0,0.000274,2]
[362415095,1748265044519,-1200.0,0.000274,2]
[362415096,1748265044528,-650.0,0.000274,2]
[362415097,1748265044538,-29074.6259084,0.00027403,3]
[362415098,1748265044548,-18102.958681,0.00027413,2]
[362415099,1748265044557,-600.0,0.00027484,2]
[362415100,1748265044568,-194.620192,0.000275,2]
[362415101,1748265044578,-531.5562618,0.000275,2]